Workbook

Sheet Sheet1
A1: 2013-01-11
A2: sn 3048
B4: load cell calibration
B6: Load Cell
B7: mass Pb | C7: cnts
B8: 52.2 | C8: 51
B9: 124 | C9: 121.4
B11: Load Cell Gain
B12: =(C9-C8)/(B9-B8) -> 0.9805013928 | C12: cnts/gram
B14: Mass SOLO in air (g) | C14: 47460 | D14: =CONVERT(C14,"g","lbm") -> 104.6313896
B15: added weights | C15: 24.5
C16: =C14+C15 -> 47484.5
B18: Tank H20 Salinity (psu) | C18: 32.7
O19: 34
B20: Data | L20: 200 | M20: 8.6 | O20: =1/Spec_Vol($O$19,M20,L20) -> 1.027308068
B21: P(psi) | C21: P(dBar) | D21: Temp(degC) | E21: Cnts | F21: H20 Density | G21: SOLOII Vol | H21: Mass
B22: 0 | C22: 0 | D22: 13.75 | E22: 146.5 | F22: =1/Spec_Vol($C$18,D22,C22) -> 1.024462128 | G22: =( $C$16 - (E22/$B$12)-20 )/F22 -> 46185.29603 | H22: end
B23: 1200 | C23: =B23*0.6895 -> 827.4 | D23: 13.41 | E23: 100.8 | F23: =1/Spec_Vol($C$18,D23,C23) -> 1.028204798 | G23: =( $C$16 - (E23/$B$12)-20 )/F23 -> 46062.51162
B24: 900 | C24: =B24*0.6895 -> 620.55 | D24: 13.39 | E24: 120.7 | F24: 1.027296398 | G24: =( $C$16 - (E24/$B$12) )/F24 -> 46102.95511
B25: 600 | C25: =B25*0.6895 -> 413.7 | D25: 13.37 | E25: 139.8 | F25: 1.026383955 | G25: 46124.96098
B26: 1200 | C26: 827.4 | D26: 13.39 | E26: 101.5 | F26: 1.028209081 | G26: 46081.0767 | H26: =E26/B$12+buoy($C$18,D26,C26,E$40,E$41,$G$34) -> 47460.50565 | I26: =E26/B$12+buoy($C$18,D26,C26,E$40,E$41,$L$34) -> 47480.55458
B27: 900 | C27: =B27*0.6895 -> 620.55 | D27: 13.38 | E27: 118.4 | F27: 1.027298504 | G27: 46105.14401 | H27: 47457.34444 | I27: 47477.38473
B28: 600 | C28: =B28*0.6895 -> 413.7 | D28: 13.35 | E28: 141.7 | F28: 1.026388094 | G28: 46122.88704 | H28: =E28/B$12+buoy($C$18,D28,C28,E$40,E$41,$G$34) -> 47460.59946 | I28: =E28/B$12+buoy($C$18,D28,C28,E$40,E$41,$L$34) -> 47480.63108
D32: Compressibility Calculations | F32: Volume from linear fit | K32: Volume using 0 pressure weight at end
F33: slope (cc/db) | G33: =SLOPE($G26:$G28,$C26:$C28) -> -0.1010643838 | I33: =G33-0.005 -> -0.1060643838 | K33: slope (cc/db) | L33: =SLOPE($G26:$G28,$C26:$C28) -> -0.1010643838
F34: v0 (from intercept) | G34: =INTERCEPT(G26:G28,C26:C28) -> 46165.75142 | K34: v0 (from last weight) | L34: =G22 -> 46185.29603
F35: compressibillity | H35: =G33/G34 -> -2.189163626e-06 | I35: =I33/G34 -> -2.297469022e-06 | K35: compressibillity | M35: =L33/L34 -> -2.18823722e-06
C37: Depth | D37: Temp | E37: Salinity | F37: Mass | G37: in water wt.
B38: target | C38: 1000 | D38: 3.895 | E38: 34.28 | F38: =buoy(E38,D38,C38,E$40,E$41,G34) -> 47467.64695 | I38: =buoy(E38,D38,C38,E$40,E$41,L34) -> 47487.74273
B39: weight to add | F39: =F38-H28+C15 -> 31.54748912 | G39: =F39*1.1 -> 34.70223804 | I39: =I38-I28+C15 -> 31.61165546
D40: alpha= | E40: 2.2e-06
D41: beta= | E41: 8.5e-05
B43: Sensitivity
C44: =C38-100 -> 900 | D44: =D38 -> 3.895 | E44: =E38 -> 34.28 | F44: =buoy(E44,D44,C44,E$40,E$41,G$34) -> 47457.09558 | H44: =(F$38-F44)/((C$38-C44)/100) -> 10.55137157 | I44: g/100db
C45: =C38 -> 1000 | D45: =D38+1 -> 4.895 | E45: =E38 -> 34.28 | F45: =buoy(E45,D45,C45,E$40,E$41,G$34) -> 47465.63983 | H45: =(F$38-F45)/(D$38-D45) -> -2.007117971 | I45: g/degree
C46: =C38 -> 1000 | D46: =D38 -> 3.895 | E46: =E38-1 -> 33.28 | F46: =buoy(E46,D46,C46,E$40,E$41,G$34) -> 47431.39606 | H46: =F$38-F46/(E38-E46) -> 36.25089045 | I46: g/psu
C47: =C38 -> 1000 | D47: =D38 -> 3.895 | E47: =E38 -> 34.28 | F47: =buoy(E47,D47,C47,E$40*1.1,E$41,G$34) -> 47457.16711 | H47: =F$38-F47 -> 10.47983869 | I47: g/10%alpha
B50: surface | C50: 0 | D50: 15 | E50: 33.626 | F50: =buoy(E50,D50,C50,E$40,E$41,G34) -> 47297.80545 | I50: =buoy(E50,D50,C50,E$40,E$41,L34) -> 47317.82933
B51: weight to add | F51: =F38-F50 -> 169.8414989 | G51: =210-F51 -> 40.15850106 | I51: =(C38-C50)/100*H44+(D38-D50)*H45+(E38-E50)*H46 -> 151.5108431 | J51: =210-I51 -> 58.4891569

Sheet Sheet2

Sheet Sheet3
